Cogmind - Beta 16 @@@ ROGUE MODE // 2026.01.18 @ 01:29:30 Player: DreamCore Result: Destroyed by S-10 Pest with Light Assault Rifle Performance ------------- Evolutions (0) 0 Regions Visited (2) 400 Robots Destroyed (32) 160 Value Destroyed (566) 566 Prototype IDs (0) 0 Alien Tech Used (0) 0 Bonus (11) 11 TOTAL SCORE: 1137 Bonus ------- Follower Combat Kills 21 Friendly Fire -10 Cogmind --------- Core Integrity 0/250 Matter 300/300 Energy 140/150 System Corruption 1% Temperature Warm (166) Movement Walking (190) Ox1 Location -10/Mines Parts ------- > --- POWER (1) -------- Light Angular Momentum Engine > --- PROPULSION (2) --- Aluminum Leg Carbon-fiber Leg > --- UTILITY (2) ------ Large Storage Unit Signal Interpreter > --- WEAPON (2) ------- Small Laser Beamcaster > --- INVENTORY (15) --- Ion Engine Ion Engine Aluminum Leg Aluminum Leg Aluminum Leg Carbon-fiber Leg Scrap Suit Improved Heat Sink Improved Heat Sink Targeting Computer Small Laser Flak Cannon Rocket Launcher Mining Laser Peak State ------------ > --- POWER ------------ Light Angular Momentum Engine > --- PROPULSION ------- Aluminum Leg Carbon-fiber Leg > --- UTILITY ---------- Improved Heat Sink Large Storage Unit > --- WEAPON ----------- Beamcaster Rocket Launcher > --- INVENTORY -------- Ion Engine Ion Engine Aluminum Leg Aluminum Leg Aluminum Leg Carbon-fiber Leg Scrap Suit Improved Heat Sink Signal Interpreter Targeting Computer Small Laser Small Laser Small Laser Mining Laser [Rating: 22] Favorites ----------- Power Ion Engine Engine Ion Engine Propulsion Aluminum Leg Leg Aluminum Leg Utility Large Storage Unit Device Heat Sink Storage Large Storage Unit Processor Signal Interpreter Weapon Small Laser Energy Gun Small Laser Launcher Rocket Launcher Build | -11 -10 -10 ------- Run | Yrd Mat Min Slots Evolved . | . . . Power . | . . . Propulsion . | . . . Utility . | . . . Weapon . | . . . Parts Attached 17 | . 9 8 Power 2 | . 1 1 Engine 2 | . 1 1 Core . | . . . Reactor . | . . . Propulsion 5 | . 3 2 Treads . | . . . Leg 5 | . 3 2 Wheel . | . . . Hover . | . . . Flight . | . . . Utility 5 | . 3 2 Device 3 | . 2 1 Storage 1 | . 1 . Processor 1 | . . 1 Hackware . | . . . Protection . | . . . Artifact . | . . . Weapon 5 | . 2 3 Energy Gun 4 | . 2 2 Energy Cannon . | . . . Ballistic Gun . | . . . Ballistic Cannon . | . . . Launcher 1 | . . 1 Special Weapon . | . . . Impact Weapon . | . . . Slashing Weapon . | . . . Piercing Weapon . | . . . Special Melee Weapon . | . . . Unidentified Prototypes . | . . . Parts Lost . | . . . Power . | . . . Propulsion . | . . . Utility . | . . . Weapon . | . . . Highest Loss Streak . | . . . To Critical Strikes . | . . . Average Backups 12 | . 10 14 Power 1 | . 1 2 Propulsion 4 | . 4 4 Utility 2 | . 1 3 Weapon 3 | . 2 4 Tool/Special . | . . . Unused Backups 21 | . 6 15 Power 4 | . 1 3 Propulsion 7 | . 2 5 Utility 4 | . 1 3 Weapon 6 | . 2 4 Tool/Special . | . . . Average Slot Usage (%) 96 | . 93 100 Engine 14 | . 14 14 Leg 28 | . 28 28 Device 7 | . 7 6 Storage 14 | . 14 14 Processor 3 | . . 7 Energy Gun 27 | . 28 27 Peak Build Rating 22 | . 8 22 Average Rating 12 | . 7 18 On Entrance 6 | 6 6 8 Avg Prop Armor Cover (%) . | . . . Naked Turns . | . . . Heaviest Build 36 | 12 28 36 Greatest Support 25 | 20 20 25 Greatest Overweight (x) 1 | . 1 1 Average Overweight (x) . | . . 1 Largest Inventory Capacity 15 | . 15 15 Average Capacity 14 | . 13 15 Most Carried 15 | . 15 15 Average Carried 12 | . 10 14 Final Capacity 15 | 8 15 15 Final Carried 15 | 6 15 15 Class Distribution -------------------- 58% | Scavenger-Mutant 41% | Mutant Dominant Class ---------------- Mutant | -10/Materials Scavenger-Mutant | -10/Mines Resources | -11 -10 -10 ----------- Run | Yrd Mat Min Matter Collected 446 | 173 117 156 Remotely . | . . . Salvage Created 730 | . 616 114 Parts 53 | . 36 17 Haulers Intercepted 2 | . 2 . Recyclers Shooed 3 | . 3 . Parts Field Recycled . | . . . Retrieved Matter . | . . . Parts Self-Destructed . | . . . Prevented . | . . . Parts Restored . | . . . Kills | -11 -10 -10 ------- Run | Yrd Mat Min Combat Hostiles Destroyed 24 | . 13 11 Guns 18 | . 13 5 AOE 6 | . . 6 Classes Destroyed 7 | . 6 1 Worker 3 | . 3 . Builder 1 | . . 1 Hauler 2 | . 2 . Operator 1 | . 1 . Watcher 1 | . 1 . Swarmer 16 | . 5 11 Grunt 8 | . 8 . Best Kill Streak 7 | . 6 7 Combat Bots Only 6 | . 5 6 Max Kills in Single Turn 4 | . 1 4 Gunslinging . | . . . Exploded 4 | . . 4 Melee . | . . . Uniques/NPCs Destroyed . | . . . Combat | -11 -10 -10 -------- Run | Yrd Mat Min Hostile Shots Fired 123 | . 73 50 Missed 32 | . 23 9 Hits 91 | . 50 41 Projectile 91 | . 50 41 Critical Strikes 2 | . . 2 Damage Taken 917 | . 505 412 Core 255 | . 195 60 Absorbed by Shields . | . . . Core Remaining (%) 100 | 100 . . Volleys Fired 80 | . 59 21 Largest 2 | . 2 2 Hottest 115 | . 80 115 Shots Fired 149 | . 113 36 Gun 143 | . 113 30 Cannon . | . . . Launcher 6 | . . 6 Special . | . . . Kinetic . | . . . Thermal 143 | . 113 30 Explosive 6 | . . 6 Electromagnetic . | . . . Robot Hit Streak 11 | . 11 4 Robot Miss Streak 5 | . 4 5 Penetration Max . | . . . Secondary Targets 1 | . 1 . Max Gunslinging Chain 1 | . 1 . Shots Hit Robots 79 | . 68 11 Core Hits 47 | . 33 14 Critical Kills . | . . . Critical Parts Destroyed . | . . . Critical Strikes . | . . . Melee Attacks . | . . . Impact . | . . . Slashing . | . . . Piercing . | . . . Sneak Attacks . | . . . Combat Hostiles . | . . . Follow-up Attacks . | . . . Damage Inflicted 1420 | . 810 610 Guns 973 | . 810 163 Cannons . | . . . Explosions 444 | . . 444 Melee . | . . . Ramming 3 | . . 3 Kinetic . | . . . Thermal 1098 | . 810 288 Explosive 319 | . . 319 Electromagnetic . | . . . Impact . | . . . Slashing . | . . . Piercing . | . . . Highest Corruption 1 | . . 1 Average Corruption 1 | . . 1 Corruption Purged . | . . . Corruption Blocked . | . . . Overload Shots . | . . . Overflow Damage 15 | . . 15 Projectiles . | . . . Explosions 15 | . . 15 Melee . | . . . Knockbacks . | . . . Impact . | . . . Kinetic . | . . . Secondary . | . . . Self-Inflicted Damage 31 | . . 31 Shots 1 | . . 1 Rammed . | . . . Targets Rammed 1 | . . 1 Kicked 1 | . . 1 Crushed . | . . . Highest Temperature 252 | . 252 180 Average Temperature 94 | . 96 87 Received Heat Transfer 198 | . 198 . Effects 3 | . 3 . Energy Bleed 1 | . 1 . Interference 2 | . 2 . Siege Activations . | . . . Martial Activations . | . . . Shielding Activations . | . . . Robots Disrupted . | . . . Combat Hostiles . | . . . Robots Corrupted . | . . . Combat Hostiles . | . . . Parts Fried . | . . . Impact Corruptions . | . . . Robots Melted . | . . . Combat Hostiles . | . . . Parts Melted 3 | . 2 1 Heat Transferred 2274 | . 1775 499 Parts Sabotaged . | . . . Parts Stolen . | . . . Parts Stripped . | . . . Power Chain Reactions . | . . . Alert | -11 -10 -10 ------- Run | Yrd Mat Min Maximum Alert Level 1 | . . 1 Low Security (%) 90 | . 100 78 Level 1 9 | . . 21 Level 2 . | . . . Level 3 . | . . . Level 4 . | . . . Level 5 . | . . . High Security . | . . . Max Security . | . . . Peak Influence 310 | . 164 310 Initial 35 | . . 35 Average 95 | . 67 127 Influence Increases 929 | . 413 516 Destroy 0b10 Robot/C 540 | . 260 280 Destroy 0b10 Robot/NC 40 | . 35 5 Destroy Leader 106 | . 56 50 Allied During Kill 4 | . . 4 Successful Hack 17 | . 17 . Select Force Hacks 30 | . 30 . Disable Machine 135 | . . 135 Destroy Structure 27 | . . 27 Lose Combat Pursuer 30 | . 15 15 Influence Decreases 888 | . 321 567 Entered New Map 57 | . . 57 Time Decay 811 | . 321 490 Lost Ally 20 | . . 20 Squads Dispatched 8 | . 8 . Investigation 7 | . 7 . Extermination . | . . . Reinforcement 1 | . 1 . Assault . | . . . Garrison . | . . . Intercept . | . . . Searches Triggered . | . . . Construction Impeded . | . . . Haulers Reinforced . | . . . Active Scanning Responses . | . . . Cargo Convoy Interrupts . | . . . Stealth | -11 -10 -10 --------- Run | Yrd Mat Min Distress Signals 2 | . 2 . Communications Jammed . | . . . Distress Signals . | . . . Times Spotted 41 | . 23 18 Peak Tracking Total 7 | . 7 5 Tactical Retreats 3 | . 2 1 Traps | -11 -10 -10 ------- Run | Yrd Mat Min Traps Triggered 4 | . 3 1 Indirectly . | . . . Trap Hack Attempts . | . . . Triggered . | . . . Disarmed . | . . . Reprogrammed . | . . . Reused . | . . . Traps Extracted . | . . . Installed . | . . . Triggered . | . . . Machines | -11 -10 -10 ---------- Run | Yrd Mat Min Machines Disabled 9 | . . 9 Max in Single Turn 8 | . . 8 Machines Repaired . | . . . Machines Dismantled . | . . . Machines Sabotaged . | . . . Overloaded Fab Kills . | . . . Hacking | -11 -10 -10 --------- Run | Yrd Mat Min Machines Accessed 9 | . 8 1 Terminals 7 | . 7 . Fabricators . | . . . Repair Stations . | . . . Recycling Units 1 | . 1 . Scanalyzers . | . . . Garrison Access . | . . . Total Hacks 25 | . 24 1 Successful 14 | . 13 1 Failed 11 | . 11 . Catastrophic 2 | . 2 . Database Lockouts . | . . . Manual 23 | . 23 . Terminals 19 | . 19 . Fabricators . | . . . Repair Stations . | . . . Recycling Units 5 | . 5 . Scanalyzers . | . . . Garrison Access . | . . . Terminal Hacks 5 | . 4 1 Robot Analysis 1 | . 1 . Open Door 1 | . . 1 Alert Level 1 | . 1 . Dispatch Records 1 | . 1 . Recall Investigation 1 | . 1 . Fabricator Hacks . | . . . Repair Station Hacks . | . . . Recycling Unit Hacks 1 | . 1 . Retrieve Components 1 | . 1 . Scanalyzer . | . . . Garrison Access Hacks . | . . . Unauthorized Hacks 8 | . 8 . Terminals 5 | . 5 . Botnet 5 | . 5 . Fabricators . | . . . Repair Stations . | . . . Recycling Units 3 | . 3 . Reject 1 | . 1 . Mask 1 | . 1 . Tunnel 1 | . 1 . Scanalyzers . | . . . Garrison Access . | . . . Data Cores Recovered . | . . . Used . | . . . Hacking Detections 8 | . 8 . Full Trace Events 1 | . 1 . Feedback Events . | . . . Feedback Blocked . | . . . Robot Schematics Acquired . | . . . Robots Built . | . . . Authchips . | . . . Time . | . . . Total Robot Build Rating . | . . . Part Schematics Acquired . | . . . Parts Built . | . . . Authchips . | . . . Time . | . . . Total Part Build Rating . | . . . Part Studies Acquired . | . . . Parts Repaired . | . . . Time . | . . . Parts Recycled . | . . . Recycled Matter . | . . . Retrieved Matter . | . . . Retrieved Components 9 | . 9 . Parts Scanalyzed . | . . . Part Schematics Acquired . | . . . Parts Damaged . | . . . Bothacking | -11 -10 -10 ------------ Run | Yrd Mat Min Used RIF Installer . | . . . Robots Hacked . | . . . Non-combat . | . . . Combat . | . . . Robot Hacks Applied . | . . . Relay Couplers Released . | . . . Fabnet Peak Effective % . | . . . Robots Rewired . | . . . Allies Hacked . | . . . Hacks Repelled . | . . . Allies | -11 -10 -10 -------- Run | Yrd Mat Min Total Allies 1 | . . 1 Largest Group 1 | . . 1 Highest-Rated Group 31 | . . 31 Highest-Rated Ally 31 | . . 31 Total Orders . | . . . Ally Attacks 6 | . . 6 Total Damage 105 | . . 105 Kills 3 | . . 3 Allies Corrupted . | . . . Allies Melted . | . . . Intel | -11 -10 -10 ------- Run | Yrd Mat Min Active Infowar (turns) . | . . . Robot Analysis Total 1 | . 1 . Derelict Logs Recovered 2 | . . 2 Drone Launches . | . . . Drone Recoveries . | . . . Exploration | -11 -10 -10 ------------- Run | Yrd Mat Min Turns Passed 2751 | . 1467 1284 Spaces Moved 1246 | 1 610 635 Core . | . . . Treads . | . . . Legs 1246 | 1 610 635 Wheels . | . . . Hover . | . . . Flight . | . . . Fastest Speed 120 | 120 120 190 Average Speed 182 | 120 174 190 Slowest Speed 190 | 120 190 190 Overloaded Moves . | . . . Propulsion Burnouts . | . . . Robots Hopped . | . . . Potential Cave-ins . | . . . Cave-ins Triggered . | . . . Exploration Rate (%) 64 | 2 94 98 Regions Visited 2 Branch Regions 1 Pre-discovered Areas 2 | . 1 1 Known Exits Taken . | . . . Unknown Exits Taken 2 | 1 1 . Scrap Searched 1 | . . 1 Spaces Dug . | . . . Terrain Destroyed 50 | . . 50 Melee . | . . . Projectile . | . . . AOE 50 | . . 50 Terrain Rammed . | . . . Walls Destroyed . | . . . Machines Disabled . | . . . Actions | -11 -10 -10 --------- Run | Yrd Mat Min Total 1586 | . 905 681 Wait 206 | . 205 1 Move 1244 | . 609 635 Hop . | . . . Pick Up 17 | . 13 4 Fast Attach . | . . . Attach 3 | . 3 . Detach 1 | . 1 . Swap 15 | . 6 9 Drop 19 | . 9 10 Fire 80 | . 59 21 Melee . | . . . Ram . | . . . Kick 1 | . . 1 Crush . | . . . Escape Stasis . | . . . Rewire . | . . . Trap . | . . . Miscellaneous . | . . . Route ------- -11/Scrapyard -10/Materials (discovered 5 exits: *Mat x3 / *Min / *Sub) -10/Mines (discovered 3 exits: *Mat x2 / *Sub) History --------- Turn | Location | Event 1 | -11/Scrapyard | Discovered new exit (range 0) 1 | -11/Scrapyard | Entered Materials 152 | -10/Materials | Discovered new exit (range 7) 225 | -10/Materials | Discovered new exit (range 16) 301 | -10/Materials | Discovered new exit (range 10) 318 | -10/Materials | Build established: Mutant 601 | -10/Materials | Derelicts attacked the area 655 | -10/Materials | Discovered new exit (range 13) 1111 | -10/Materials | Core integrity fell below 50% 1222 | -10/Materials | Discovered new exit (range 10) 1434 | -10/Materials | Build established: Scavenger-Mutant 1468 | -10/Materials | Entered Mines 1473 | -10/Mines | Core integrity fell below 20% 1478 | -10/Mines | Escorted by a lone wolf Derelict 1498 | -10/Mines | Learned location of Storage (-8) 1587 | -10/Mines | Found a Scrap Suit stashed away for nefarious purposes 1589 | -10/Mines | Discovered new exit (range 9) 1592 | -10/Mines | Found Scrap Suit 1853 | -10/Mines | Received a Rocket Launcher from a helpful Derelict 2077 | -10/Mines | Discovered new exit (range 10) 2095 | -10/Mines | Identified exit to Subcaves 2250 | -10/Mines | Met a Derelict who couldn't figure out how to use a Trap Extractor 2307 | -10/Mines | Learned Materials machine intel 2317 | -10/Mines | Discovered new exit (range 6) 2326 | -10/Mines | Identified exit to Materials 2752 | -10/Mines | Destroyed by S-10 Pest with Light Assault Rifle Last Messages --------------- 02250_ 58-OZD(g): "I give up! Here you try, I'm outta here before something nasty happens..." 02250_ Tosses Imp. Trap Extractor to the ground. 02258_ Dropped Sml. Laser. 02259_ Acquired Flak Cannon. 02262_ Triggered EMP Trap. 02262_ A bubble of electromagnetic force engulfs the area. 02262_ Machine disabled. 02262_ Explosive Trap short circuited. 02262_ Machine disabled. 02262_ An explosion rips through the floor. 02262_ Machine disabled. 02307_ Acquired derelict log, extracted data. Data stored: Materials machine intel. 02317_ EXIT=FOUND 02326_ EXIT=IDENTIFIED: MATERIALS 02431_ Acquired 66 matter. 02433_ Acquired 40 matter. 02524_ Acquired derelict log, extracted data. Data stored: Storage entrances (x1). Map ----- +----------------------------------------------------+ | ] [ ##?????????????? | | ################# !!! #?????????????? | | ????????????????## ## == #?????????????? | | ?????????????????#######" # #?????????????? | | ???????????????????????####### ##?????????????? | | ??????????####???????????????## ##??????????????? | | ?????????## ##???????????????# ##############??? | | ?????????# ##?####???####### #??? | | ?????????# ### ##?## # ############ #??? | | ?###?????## ### #??????????# #??? | | ## ##?????## ##?????????# #??? | | # #??????## ##????????# ##?? | | #??????## ##??????## ##? | | ##???### ###???## #? | | # ##?## ### ### ##??# #? | | ### ##?## ##?## ##?# #? | | #???## #??# #?# #? | | #????## ##??# ### #? | | ## #?????## ##???# ##### ##? | | # #### ##??????######????# #??# ##?? | | ####??# ########?????????????????# #??# ##?? | | ??????# #????????????????????????# #??# #?? | | ??????# #???##########???????????# #### #?? | | ??????# #???# s ####???????# ## #?? | | ??????# #??????"" """ s #???????# ###?? | | ####### #??????"" """ ##@#??????## ##???? | | #??????"" """ ?# #?????## ##????? | | ####### ??# ####### ##?????? | | ??????# """ """??# ##??????? | | ??????######## """ ""???# ## ## ##??????? | | ????????????????"" ""???# ## ## """ ##?????? | | ????????????????? ????# ## ### """ #?????? | | ????###??????????? #????#s ## #?## """ #?????? | | ???## ##?????????? #?#### ##?## #?????? | | ??## #???????### #?# t ##?# ##?????? | | ### #??????## #?# ## ### ##??????? | | ######## ### ### ## # #???????? | | [ #?### #### #???????? | | ## ######### ## #???## ##?# #???????? | | ?# ##???????# ### #????### #?# #???????? | | ?####????????## ##?# #??????## ### #???????? | | ??????????????# #### #######?## #???????? | | ??????????????## #??## # ###???????? | | ###################### ##### #???#### #?????????? | | [% # # #???# #??????# #?????????? | | """ * # # #??## #??????# #?????????? | | """ # # # #### ##?????# #?????????? | | """ ### ##???## ##????????? | | ## # # ### ##??# #????????? | | "" # ##?# """ ##?# #????????? | +----------------------------------------------------+ Best States ------------- Heat Dissipation 39 Energy Generation 18 Energy Capacity 250 Matter Stores 300 Matter Capacity 300 Sight Range 16 Terrain Scan Density 10 Evasion (%) 55 Item Schematics ----------------- None Robot Schematics ------------------ None Fabricated ------------ Nothing Repaired ---------- Nothing Studied --------- None Alien Tech Used ----------------- None Achievements -------------- None Challenges ------------ None Game ------ Seed MobileSmartBuckler Manual? 0 Play Time 00:26:08 Cumulative 60.8 hours Start 2026.01.18 @ 01:03:06 End 2026.01.18 @ 01:29:30 Sessions 1 Manual Loads 0 Difficulty Rogue Special Mode None Game No. 72 Rogue 72 Adventurer 0 Explorer 0 Win Type - Total 1 Types 1/0/0/0/0/0/0/0/0/0 Lore% 25 Gallery% 33 Achievement% 24 Wizard Run 0 Options --------- Layout 0 ASCII 0 Keyboard 0 Movement Mouse Keybinds 0 Fullscreen 0 Font 16/SmallcapsGlow Map View 88x55 Zoom Use 0% Tactical HUD 1 Map Filters NONE Filters NONE Steam 1 RUN: e9da144b-d3c8-49ea-8dad-580834946953